[Event "Late-Titled-Tuesday-Blitz-September-12-2023"]
[Site "Chess.com"]
[Date "2023.09.12"]
[Round "1"]
[White "RCone"]
[Black "Tiqr777"]
[Result "0-1"]
[WhiteElo "2340"]
[BlackElo "2642"]
[TimeControl "180+1"]
[EndTime "14:06:50 PDT"]
[Termination "Tiqr777 won on time"]

1. e4 {[%clk 0:03:00.9]} 1... c6 {[%clk 0:02:59]} 2. d4 {[%clk 0:02:58.9]} 2...
d5 {[%clk 0:02:56.7]} 3. e5 {[%clk 0:02:59.4]} 3... Bf5 {[%clk 0:02:55.3]} 4. h4
{[%clk 0:02:58.6]} 4... h5 {[%clk 0:02:52.7]} 5. Bg5 {[%clk 0:02:58.6]} 5... Qb6
{[%clk 0:02:51.3]} 6. Bd3 {[%clk 0:02:58.8]} 6... Bxd3 {[%clk 0:02:50.2]} 7.
Qxd3 {[%clk 0:02:59.7]} 7... e6 {[%clk 0:02:43.6]} 8. Nd2 {[%clk 0:02:58.9]}
8... Nd7 {[%clk 0:02:42.2]} 9. Ne2 {[%clk 0:02:56.4]} 9... Ne7 {[%clk
0:02:42.2]} 10. c4 {[%clk 0:02:52.1]} 10... Nf5 {[%clk 0:02:39.9]} 11. O-O
{[%clk 0:02:49.5]} 11... f6 {[%clk 0:02:26.9]} 12. exf6 {[%clk 0:02:27.4]} 12...
gxf6 {[%clk 0:02:27.2]} 13. cxd5 {[%clk 0:02:02.9]} 13... cxd5 {[%clk
0:02:23.1]} 14. Be3 {[%clk 0:01:55.1]} 14... Nxh4 {[%clk 0:02:14.4]} 15. Ng3
{[%clk 0:01:40.4]} 15... Bd6 {[%clk 0:02:08.7]} 16. Nb3 {[%clk 0:01:21.7]} 16...
Kf7 {[%clk 0:02:02]} 17. Ne2 {[%clk 0:01:20.3]} 17... Rag8 {[%clk 0:01:57.8]}
18. g3 {[%clk 0:01:20]} 18... Nf5 {[%clk 0:01:57.7]} 19. Bf4 {[%clk 0:01:12.5]}
19... h4 {[%clk 0:01:55.2]} 20. Kg2 {[%clk 0:01:09.9]} 20... Rg4 {[%clk
0:01:27.6]} 21. f3 {[%clk 0:00:57]} 21... Rxf4 {[%clk 0:01:27.6]} 22. gxf4
{[%clk 0:00:52.3]} 22... h3+ {[%clk 0:01:27.8]} 23. Kh1 {[%clk 0:00:48.7]} 23...
Nf8 {[%clk 0:01:22.8]} 24. Rg1 {[%clk 0:00:46.7]} 24... Ng6 {[%clk 0:01:22.6]}
25. Rg4 {[%clk 0:00:46]} 25... Qc7 {[%clk 0:01:07.9]} 26. Rag1 {[%clk
0:00:45.4]} 26... Nge7 {[%clk 0:01:04.7]} 27. Rc1 {[%clk 0:00:32.1]} 27... Qd7
{[%clk 0:01:03.4]} 28. Nc5 {[%clk 0:00:31.5]} 28... Bxc5 {[%clk 0:01:03.8]} 29.
Rxc5 {[%clk 0:00:30.4]} 29... b6 {[%clk 0:01:02.8]} 30. Qb5 {[%clk 0:00:25]}
30... Qxb5 {[%clk 0:01:00.9]} 31. Rxb5 {[%clk 0:00:25.9]} 31... Rc8 {[%clk
0:01:01]} 32. Rg1 {[%clk 0:00:20.7]} 32... Rc2 {[%clk 0:01:00.7]} 33. Re1 {[%clk
0:00:20.3]} 33... Rxe2 {[%clk 0:00:59.3]} 34. Rxe2 {[%clk 0:00:19.5]} 34... Ng3+
{[%clk 0:00:59.7]} 35. Kh2 {[%clk 0:00:20.4]} 35... Nxe2 {[%clk 0:01:00.2]} 36.
Kxh3 {[%clk 0:00:21.3]} 36... Nxd4 {[%clk 0:00:59.8]} 37. Kg4 {[%clk 0:00:22.1]}
37... Nxb5 {[%clk 0:01:00.1]} 38. a4 {[%clk 0:00:17]} 38... Nd6 {[%clk
0:00:59.4]} 39. b4 {[%clk 0:00:16.5]} 39... d4 {[%clk 0:00:59.7]} 40. a5 {[%clk
0:00:15.3]} 40... d3 {[%clk 0:00:59.6]} 41. axb6 {[%clk 0:00:15.1]} 41... axb6
{[%clk 0:01:00.3]} 42. f5 {[%clk 0:00:14]} 42... e5 {[%clk 0:01:00.4]} 43. f4
{[%clk 0:00:13]} 43... e4 {[%clk 0:01:01]} 44. b5 {[%clk 0:00:01.4]} 44... d2
{[%clk 0:01:01]} 0-1

[Event "Late-Titled-Tuesday-Blitz-September-12-2023"]
[Site "Chess.com"]
[Date "2023.09.12"]
[Round "1"]
[White "GMJustin"]
[Black "BigAl"]
[Result "0-1"]
[WhiteElo "2241"]
[BlackElo "2544"]
[TimeControl "180+1"]
[EndTime "14:06:56 PDT"]
[Termination "BigAl won on time"]

1. d4 {[%clk 0:02:43.1]} 1... Nf6 {[%clk 0:02:58.7]} 2. c4 {[%clk 0:02:41.1]}
2... g6 {[%clk 0:02:58]} 3. Nc3 {[%clk 0:02:39.2]} 3... Bg7 {[%clk 0:02:58.8]}
4. e4 {[%clk 0:02:37.3]} 4... O-O {[%clk 0:02:59.5]} 5. Be3 {[%clk 0:02:28.6]}
5... d6 {[%clk 0:02:58.9]} 6. f3 {[%clk 0:02:26]} 6... Nc6 {[%clk 0:02:58.1]} 7.
Bd3 {[%clk 0:02:05.1]} 7... Nh5 {[%clk 0:02:47.6]} 8. Nge2 {[%clk 0:02:02]} 8...
e5 {[%clk 0:02:47.4]} 9. d5 {[%clk 0:01:55.4]} 9... Nd4 {[%clk 0:02:47.5]} 10.
Nb5 {[%clk 0:01:17.2]} 10... c5 {[%clk 0:02:10.4]} 11. dxc6 {[%clk 0:01:14.4]}
11... bxc6 {[%clk 0:02:10.6]} 12. Nbxd4 {[%clk 0:01:07.5]} 12... exd4 {[%clk
0:02:10.4]} 13. Bf2 {[%clk 0:00:44]} 13... Qa5+ {[%clk 0:01:50.3]} 14. Qd2
{[%clk 0:00:41.3]} 14... Qxd2+ {[%clk 0:01:50.3]} 15. Kxd2 {[%clk 0:00:41.4]}
15... c5 {[%clk 0:01:51]} 16. b4 {[%clk 0:00:31.9]} 16... f5 {[%clk 0:01:40.5]}
17. exf5 {[%clk 0:00:30.3]} 17... gxf5 {[%clk 0:01:40.5]} 18. b5 {[%clk
0:00:17.2]} 18... Re8 {[%clk 0:01:24.8]} 19. Rhe1 {[%clk 0:00:09.5]} 19... Bh6+
{[%clk 0:01:18]} 20. Kc2 {[%clk 0:00:08.9]} 20... Be3 {[%clk 0:00:56.4]} 21. Ng3
{[%clk 0:00:07.3]} 21... Ng7 {[%clk 0:00:42.6]} 22. Bxe3 {[%clk 0:00:04.3]}
22... dxe3 {[%clk 0:00:42.7]} 23. f4 {[%clk 0:00:04.2]} 23... a6 {[%clk
0:00:39.7]} 24. a4 {[%clk 0:00:03.3]} 24... Kf7 {[%clk 0:00:27.4]} 25. b6 {[%clk
0:00:02.6]} 25... Kf6 {[%clk 0:00:20.8]} 26. a5 {[%clk 0:00:01.6]} 26... Bb7
{[%clk 0:00:21]} 27. Re2 {[%clk 0:00:01.6]} 27... d5 {[%clk 0:00:17.1]} 0-1

[Event "Late-Titled-Tuesday-Blitz-September-12-2023"]
[Site "Chess.com"]
[Date "2023.09.12"]
[Round "1"]
[White "andrzej"]
[Black "econpower"]
[Result "0-1"]
[WhiteElo "2413"]
[BlackElo "2761"]
[TimeControl "180+1"]
[EndTime "14:06:57 PDT"]
[Termination "econpower won by resignation"]

1. e4 {[%clk 0:03:00.9]} 1... c5 {[%clk 0:02:55.6]} 2. Nf3 {[%clk 0:03:01.1]}
2... Nc6 {[%clk 0:02:54.2]} 3. d4 {[%clk 0:03:01.6]} 3... cxd4 {[%clk
0:02:54.3]} 4. Nxd4 {[%clk 0:03:02.5]} 4... Qb6 {[%clk 0:02:54.9]} 5. Nb3 {[%clk
0:03:01.8]} 5... Nf6 {[%clk 0:02:55.1]} 6. Nc3 {[%clk 0:03:02.3]} 6... e6 {[%clk
0:02:55.3]} 7. Bd3 {[%clk 0:03:02.6]} 7... Be7 {[%clk 0:02:54.4]} 8. Be3 {[%clk
0:03:02.2]} 8... Qc7 {[%clk 0:02:54.4]} 9. f4 {[%clk 0:03:02.6]} 9... d6 {[%clk
0:02:54.7]} 10. g4 {[%clk 0:03:02.5]} 10... a6 {[%clk 0:02:53.7]} 11. g5 {[%clk
0:03:02.2]} 11... Nd7 {[%clk 0:02:54.3]} 12. Qh5 {[%clk 0:03:01.4]} 12... g6
{[%clk 0:02:47.5]} 13. Qe2 {[%clk 0:03:01.1]} 13... b5 {[%clk 0:02:46.8]} 14.
O-O-O {[%clk 0:03:01.2]} 14... Bb7 {[%clk 0:02:45]} 15. Kb1 {[%clk 0:03:00.1]}
15... O-O-O {[%clk 0:02:42]} 16. h4 {[%clk 0:02:47.2]} 16... Nc5 {[%clk
0:02:33]} 17. Qf2 {[%clk 0:02:26]} 17... Nb8 {[%clk 0:01:45.6]} 18. Rhe1 {[%clk
0:02:05.3]} 18... Nbd7 {[%clk 0:01:45.1]} 19. Nd4 {[%clk 0:01:59.7]} 19... b4
{[%clk 0:01:43.3]} 20. Nce2 {[%clk 0:01:39.6]} 20... Nxe4 {[%clk 0:01:43]} 21.
Bxe4 {[%clk 0:01:27.9]} 21... Bxe4 {[%clk 0:01:42.6]} 22. Nc1 {[%clk 0:01:19.8]}
22... Bb7 {[%clk 0:01:39.5]} 23. Qd2 {[%clk 0:01:14.6]} 23... d5 {[%clk
0:01:31.6]} 24. Nd3 {[%clk 0:01:10.8]} 24... Nb6 {[%clk 0:01:21.5]} 25. Bg1
{[%clk 0:00:52.7]} 25... Nc4 {[%clk 0:01:20.3]} 26. Qf2 {[%clk 0:00:52.6]} 26...
Bd6 {[%clk 0:01:13.6]} 27. Nb3 {[%clk 0:00:44]} 27... a5 {[%clk 0:01:05.5]} 28.
Qa7 {[%clk 0:00:42.2]} 28... Bc6 {[%clk 0:01:05.3]} 29. Qa6+ {[%clk 0:00:26.8]}
29... Qb7 {[%clk 0:01:04.9]} 30. Qxb7+ {[%clk 0:00:23.7]} 30... Bxb7 {[%clk
0:01:05.7]} 31. Ne5 {[%clk 0:00:22.4]} 31... Nxe5 {[%clk 0:00:59.2]} 32. fxe5
{[%clk 0:00:23.3]} 32... Bc7 {[%clk 0:00:59.7]} 33. Bc5 {[%clk 0:00:18]} 33...
h6 {[%clk 0:00:59]} 34. Nd4 {[%clk 0:00:16]} 34... Ba6 {[%clk 0:00:57.4]} 35.
Nc6 {[%clk 0:00:15.5]} 35... Rde8 {[%clk 0:00:54.1]} 36. Rd4 {[%clk 0:00:13.1]}
36... hxg5 {[%clk 0:00:53.7]} 37. hxg5 {[%clk 0:00:12.1]} 37... Kb7 {[%clk
0:00:53]} 38. Ne7 {[%clk 0:00:12]} 38... Bb6 {[%clk 0:00:50.8]} 39. Bxb6 {[%clk
0:00:09.9]} 39... Kxb6 {[%clk 0:00:50.7]} 40. Nxd5+ {[%clk 0:00:07.7]} 40...
exd5 {[%clk 0:00:50.5]} 41. Rxd5 {[%clk 0:00:08.6]} 41... Rd8 {[%clk 0:00:51]}
42. Red1 {[%clk 0:00:04.6]} 42... Rxd5 {[%clk 0:00:50.4]} 43. Rxd5 {[%clk
0:00:05.1]} 43... Rh1+ {[%clk 0:00:51]} 44. Rd1 {[%clk 0:00:05.3]} 0-1

[Event "Late-Titled-Tuesday-Blitz-September-12-2023"]
[Site "Chess.com"]
[Date "2023.09.12"]
[Round "1"]
[White "AleksandrAleksikov"]
[Black "VitorBronson"]
[Result "0-1"]
[WhiteElo "2269"]
[BlackElo "2564"]
[TimeControl "180+1"]
[EndTime "14:07:00 PDT"]
[Termination "VitorBronson won on time"]

1. e4 {[%clk 0:02:58.4]} 1... c5 {[%clk 0:02:59.4]} 2. Nf3 {[%clk 0:02:57.1]}
2... d6 {[%clk 0:02:57]} 3. d4 {[%clk 0:02:56.5]} 3... cxd4 {[%clk 0:02:57.3]}
4. Nxd4 {[%clk 0:02:56.2]} 4... Nf6 {[%clk 0:02:57.4]} 5. Nc3 {[%clk 0:02:55.9]}
5... a6 {[%clk 0:02:57.9]} 6. Bg5 {[%clk 0:02:55.1]} 6... e6 {[%clk 0:02:57.3]}
7. f4 {[%clk 0:02:49.7]} 7... Be7 {[%clk 0:02:57.2]} 8. Be2 {[%clk 0:02:29.9]}
8... O-O {[%clk 0:02:55.5]} 9. Bf3 {[%clk 0:02:25.3]} 9... Bd7 {[%clk
0:02:49.8]} 10. e5 {[%clk 0:02:15.8]} 10... Ne8 {[%clk 0:02:46.3]} 11. Bxe7
{[%clk 0:02:06.6]} 11... Qxe7 {[%clk 0:02:46.1]} 12. Bxb7 {[%clk 0:02:01.6]}
12... Ra7 {[%clk 0:02:45.7]} 13. Bf3 {[%clk 0:01:59.1]} 13... dxe5 {[%clk
0:02:45.8]} 14. fxe5 {[%clk 0:01:57.6]} 14... Qc5 {[%clk 0:02:38.3]} 15. Nb3
{[%clk 0:01:39.5]} 15... Qxe5+ {[%clk 0:02:37.1]} 16. Qe2 {[%clk 0:01:40]} 16...
Qxe2+ {[%clk 0:02:31.3]} 17. Kxe2 {[%clk 0:01:39.6]} 17... Nc7 {[%clk 0:02:18]}
18. Rad1 {[%clk 0:01:37.5]} 18... Nb5 {[%clk 0:02:17.3]} 19. Nxb5 {[%clk
0:01:28.1]} 19... axb5 {[%clk 0:02:16.4]} 20. a3 {[%clk 0:01:25.1]} 20... Bc6
{[%clk 0:02:15.1]} 21. Rd6 {[%clk 0:01:21.6]} 21... Bxf3+ {[%clk 0:02:13.8]} 22.
Kxf3 {[%clk 0:01:21.7]} 22... Nd7 {[%clk 0:02:13.8]} 23. Re1 {[%clk 0:01:17.9]}
23... Rc8 {[%clk 0:02:01.9]} 24. c3 {[%clk 0:01:16.1]} 24... Kf8 {[%clk
0:02:00]} 25. Nd4 {[%clk 0:01:13.9]} 25... Rb7 {[%clk 0:01:52.3]} 26. Ra6 {[%clk
0:01:04.8]} 26... g6 {[%clk 0:01:41.5]} 27. g4 {[%clk 0:01:02.6]} 27... h6
{[%clk 0:01:39.2]} 28. h4 {[%clk 0:01:01]} 28... Rc5 {[%clk 0:01:36.7]} 29. Ra5
{[%clk 0:00:43.1]} 29... Ne5+ {[%clk 0:01:32.4]} 30. Kg3 {[%clk 0:00:35.8]}
30... Nc4 {[%clk 0:01:31.7]} 31. Ra8+ {[%clk 0:00:35.4]} 31... Kg7 {[%clk
0:01:30.5]} 32. Re2 {[%clk 0:00:29.5]} 32... e5 {[%clk 0:01:26.1]} 33. Nf3
{[%clk 0:00:28.1]} 33... f5 {[%clk 0:01:23]} 34. h5 {[%clk 0:00:25.3]} 34... f4+
{[%clk 0:01:21.7]} 35. Kf2 {[%clk 0:00:23.8]} 35... g5 {[%clk 0:01:15.2]} 36. b3
{[%clk 0:00:21.5]} 36... Ne3 {[%clk 0:01:11.1]} 37. c4 {[%clk 0:00:15.4]} 37...
bxc4 {[%clk 0:01:09.8]} 38. b4 {[%clk 0:00:15.5]} 38... Rd5 {[%clk 0:01:08.6]}
39. Rxe3 {[%clk 0:00:14.9]} 39... fxe3+ {[%clk 0:01:08.1]} 40. Kxe3 {[%clk
0:00:14.9]} 40... Rc7 {[%clk 0:01:07.1]} 41. Ke4 {[%clk 0:00:11.2]} 41... Rd8
{[%clk 0:01:01]} 42. Rxd8 {[%clk 0:00:07.5]} 42... c3 {[%clk 0:01:01.5]} 43. Rd1
{[%clk 0:00:06.2]} 43... c2 {[%clk 0:01:01.9]} 44. Rc1 {[%clk 0:00:04.9]} 44...
Rc4+ {[%clk 0:01:02.3]} 45. Kxe5 {[%clk 0:00:03.9]} 45... Rc3 {[%clk 0:01:02.8]}
46. Nxg5 {[%clk 0:00:03.5]} 46... hxg5 {[%clk 0:01:02.3]} 47. b5 {[%clk
0:00:03.4]} 47... Rb3 {[%clk 0:01:00.4]} 48. Rxc2 {[%clk 0:00:01.2]} 48... Rxb5+
{[%clk 0:01:00.3]} 49. Ke6 {[%clk 0:00:01.5]} 49... Ra5 {[%clk 0:01:00.7]} 0-1

[Event "Late-Titled-Tuesday-Blitz-September-12-2023"]
[Site "Chess.com"]
[Date "2023.09.12"]
[Round "1"]
[White "pirulillo"]
[Black "DeTimmerman"]
[Result "0-1"]
[WhiteElo "2331"]
[BlackElo "2636"]
[TimeControl "180+1"]
[EndTime "14:07:01 PDT"]
[Termination "DeTimmerman won on time"]

1. e4 {[%clk 0:02:58.7]} 1... e5 {[%clk 0:02:59.2]} 2. Nf3 {[%clk 0:02:55.3]}
2... Nc6 {[%clk 0:02:57.6]} 3. Bc4 {[%clk 0:02:55.6]} 3... Nf6 {[%clk
0:02:53.8]} 4. d3 {[%clk 0:02:54]} 4... Be7 {[%clk 0:02:53.2]} 5. O-O {[%clk
0:02:51.9]} 5... O-O {[%clk 0:02:54.1]} 6. Re1 {[%clk 0:02:49.6]} 6... d6 {[%clk
0:02:53.5]} 7. c3 {[%clk 0:02:48.8]} 7... Kh8 {[%clk 0:02:52]} 8. Nbd2 {[%clk
0:02:45]} 8... Ng8 {[%clk 0:02:51.9]} 9. b4 {[%clk 0:02:36.6]} 9... f5 {[%clk
0:02:51.3]} 10. a4 {[%clk 0:02:29.4]} 10... Qe8 {[%clk 0:02:48.9]} 11. exf5
{[%clk 0:01:55]} 11... Bxf5 {[%clk 0:02:49.8]} 12. d4 {[%clk 0:01:53.7]} 12...
Bf6 {[%clk 0:02:43.8]} 13. b5 {[%clk 0:01:36.3]} 13... Na5 {[%clk 0:02:39.9]}
14. Bxg8 {[%clk 0:01:34.4]} 14... Rxg8 {[%clk 0:02:35.3]} 15. dxe5 {[%clk
0:01:34.6]} 15... dxe5 {[%clk 0:02:36.2]} 16. Ne4 {[%clk 0:01:28.3]} 16... Qg6
{[%clk 0:02:30.9]} 17. Qe2 {[%clk 0:01:20]} 17... Nb3 {[%clk 0:02:26.2]} 18. Rb1
{[%clk 0:01:18.9]} 18... Nc5 {[%clk 0:02:12.9]} 19. Nfd2 {[%clk 0:01:08.3]}
19... Rgd8 {[%clk 0:02:03.5]} 20. Rb4 {[%clk 0:01:02.3]} 20... Nd3 {[%clk
0:02:02.4]} 21. Ba3 {[%clk 0:00:43.3]} 21... Nxe1 {[%clk 0:02:01.2]} 22. Qxe1
{[%clk 0:00:42.3]} 22... Bxe4 {[%clk 0:02:00.9]} 23. Nxe4 {[%clk 0:00:38.9]}
23... Be7 {[%clk 0:01:58.6]} 24. f3 {[%clk 0:00:35.4]} 24... Bxb4 {[%clk
0:01:58.4]} 25. Bxb4 {[%clk 0:00:36.3]} 25... a6 {[%clk 0:01:50.9]} 26. h3
{[%clk 0:00:27.3]} 26... axb5 {[%clk 0:01:50.8]} 27. axb5 {[%clk 0:00:26.4]}
27... Qb6+ {[%clk 0:01:51]} 28. Kh2 {[%clk 0:00:25.3]} 28... Qxb5 {[%clk
0:01:51.1]} 29. Qh4 {[%clk 0:00:24.9]} 29... Qe8 {[%clk 0:01:42.9]} 30. Be7
{[%clk 0:00:24]} 30... Rd7 {[%clk 0:01:37.5]} 31. Bg5 {[%clk 0:00:23]} 31... Qg6
{[%clk 0:01:29.2]} 32. Be3 {[%clk 0:00:19.7]} 32... h6 {[%clk 0:01:23.9]} 33.
Bf2 {[%clk 0:00:19.2]} 33... Ra2 {[%clk 0:01:22.3]} 34. Bg3 {[%clk 0:00:19.3]}
34... Rd1 {[%clk 0:01:19.7]} 35. Qe7 {[%clk 0:00:17.4]} 35... Raa1 {[%clk
0:01:17.2]} 36. Nf2 {[%clk 0:00:07.3]} 36... Re1 {[%clk 0:01:12.9]} 37. Qxc7
{[%clk 0:00:06.9]} 37... Re2 {[%clk 0:00:33.8]} 38. Qxb7 {[%clk 0:00:04.2]}
38... Raa2 {[%clk 0:00:34]} 0-1

[Event "Late-Titled-Tuesday-Blitz-September-12-2023"]
[Site "Chess.com"]
[Date "2023.09.12"]
[Round "1"]
[White "The_Princess_Moon"]
[Black "ozates"]
[Result "0-1"]
[WhiteElo "2265"]
[BlackElo "2563"]
[TimeControl "180+1"]
[EndTime "14:07:02 PDT"]
[Termination "ozates won by checkmate"]

1. e4 {[%clk 0:03:00.9]} 1... e5 {[%clk 0:02:57.5]} 2. Nf3 {[%clk 0:03:00.1]}
2... Nc6 {[%clk 0:02:57.7]} 3. Nc3 {[%clk 0:02:59.5]} 3... Nf6 {[%clk
0:02:57.4]} 4. Bb5 {[%clk 0:02:58.5]} 4... Bd6 {[%clk 0:02:57.1]} 5. O-O {[%clk
0:02:56.6]} 5... O-O {[%clk 0:02:56.7]} 6. d3 {[%clk 0:02:53.6]} 6... h6 {[%clk
0:02:55.2]} 7. h3 {[%clk 0:02:49.2]} 7... Re8 {[%clk 0:02:55.4]} 8. Be3 {[%clk
0:02:44.5]} 8... Ne7 {[%clk 0:02:54.6]} 9. Bc4 {[%clk 0:02:41.9]} 9... Ng6
{[%clk 0:02:54.3]} 10. Ne2 {[%clk 0:02:34.6]} 10... c6 {[%clk 0:02:53.6]} 11.
Nh2 {[%clk 0:02:28]} 11... Bc7 {[%clk 0:02:53.6]} 12. f4 {[%clk 0:02:27.2]}
12... d5 {[%clk 0:02:52.4]} 13. exd5 {[%clk 0:02:22.2]} 13... exf4 {[%clk
0:02:49.7]} 14. Bxf4 {[%clk 0:02:18.2]} 14... Bb6+ {[%clk 0:02:01.6]} 15. Kh1
{[%clk 0:02:12.5]} 15... Nh5 {[%clk 0:02:01.9]} 16. dxc6 {[%clk 0:01:25]} 16...
Ngxf4 {[%clk 0:01:53.9]} 17. Rxf4 {[%clk 0:01:04.7]} 17... Nxf4 {[%clk
0:01:47.5]} 18. Nxf4 {[%clk 0:01:02.3]} 18... bxc6 {[%clk 0:01:33.4]} 19. Qh5
{[%clk 0:00:59.9]} 19... Qf6 {[%clk 0:01:23.3]} 20. Rf1 {[%clk 0:00:54.5]} 20...
Re5 {[%clk 0:01:22.6]} 21. Bxf7+ {[%clk 0:00:43.8]} 21... Kh7 {[%clk 0:01:12.5]}
22. Qg6+ {[%clk 0:00:33.5]} 22... Qxg6 {[%clk 0:01:00.7]} 23. Bxg6+ {[%clk
0:00:30.9]} 23... Kg8 {[%clk 0:00:56.1]} 24. Nf3 {[%clk 0:00:24.9]} 24... Re7
{[%clk 0:00:55.3]} 25. Be4 {[%clk 0:00:23.5]} 25... Bb7 {[%clk 0:00:48.4]} 26.
Ng6 {[%clk 0:00:22.3]} 26... Re6 {[%clk 0:00:41.9]} 27. Nfh4 {[%clk 0:00:20.6]}
27... Rae8 {[%clk 0:00:37.4]} 28. Nf5 {[%clk 0:00:20.2]} 28... Rxg6 {[%clk
0:00:34]} 29. Ne7+ {[%clk 0:00:18.3]} 29... Rxe7 {[%clk 0:00:34.3]} 30. Bxg6
{[%clk 0:00:18.7]} 30... c5 {[%clk 0:00:31]} 31. Kh2 {[%clk 0:00:17.5]} 31...
Bc7+ {[%clk 0:00:30.7]} 32. Kg1 {[%clk 0:00:17.4]} 32... Re2 {[%clk 0:00:28.2]}
33. Rf2 {[%clk 0:00:17]} 33... Re1+ {[%clk 0:00:19]} 34. Rf1 {[%clk 0:00:16.8]}
34... Bh2+ {[%clk 0:00:19.1]} 35. Kf2 {[%clk 0:00:16.7]} 35... Bg3+ {[%clk
0:00:18.6]} 36. Kg1 {[%clk 0:00:16.4]} 36... Re2 {[%clk 0:00:19]} 37. d4 {[%clk
0:00:15.1]} 37... Rxg2+ {[%clk 0:00:18.6]} 38. Kh1 {[%clk 0:00:13.6]} 38... Rh2+
{[%clk 0:00:19.3]} 39. Kg1 {[%clk 0:00:13.9]} 39... Rh1# {[%clk 0:00:20.2]} 0-1

[Event "Late-Titled-Tuesday-Blitz-September-12-2023"]
[Site "Chess.com"]
[Date "2023.09.12"]
[Round "1"]
[White "tteshan"]
[Black "ritanovikova"]
[Result "1-0"]
[WhiteElo "2526"]
[BlackElo "2127"]
[TimeControl "180+1"]
[EndTime "14:07:03 PDT"]
[Termination "tteshan won on time"]

1. d4 {[%clk 0:03:00.9]} 1... g6 {[%clk 0:02:57.1]} 2. e4 {[%clk 0:03:00.3]}
2... Bg7 {[%clk 0:02:57.2]} 3. Nc3 {[%clk 0:03:00.6]} 3... d6 {[%clk 0:02:57.1]}
4. Be3 {[%clk 0:03:01.1]} 4... c6 {[%clk 0:02:56.9]} 5. Qd2 {[%clk 0:03:01.5]}
5... b5 {[%clk 0:02:57]} 6. O-O-O {[%clk 0:03:00.6]} 6... Bb7 {[%clk 0:02:56.6]}
7. Kb1 {[%clk 0:02:59.7]} 7... a5 {[%clk 0:02:55.8]} 8. h4 {[%clk 0:02:58.8]}
8... Nf6 {[%clk 0:02:53.3]} 9. f3 {[%clk 0:02:57.1]} 9... h5 {[%clk 0:02:52.6]}
10. Nh3 {[%clk 0:02:56.3]} 10... a4 {[%clk 0:02:50]} 11. Ng5 {[%clk 0:02:54]}
11... Qa5 {[%clk 0:02:46.8]} 12. e5 {[%clk 0:02:27.1]} 12... Nfd7 {[%clk
0:02:41.1]} 13. e6 {[%clk 0:02:18.9]} 13... fxe6 {[%clk 0:02:37.5]} 14. Nxe6
{[%clk 0:02:13.9]} 14... Bf6 {[%clk 0:02:32.7]} 15. Bd3 {[%clk 0:02:13.4]} 15...
Rg8 {[%clk 0:02:27.2]} 16. Ne4 {[%clk 0:01:59.1]} 16... Qxd2 {[%clk 0:02:18.3]}
17. Bxd2 {[%clk 0:02:00]} 17... Na6 {[%clk 0:02:10.4]} 18. Rde1 {[%clk
0:01:52.5]} 18... Kf7 {[%clk 0:02:09.1]} 19. N6g5+ {[%clk 0:01:46.3]} 19... Bxg5
{[%clk 0:02:04.6]} 20. Nxg5+ {[%clk 0:01:47.2]} 20... Ke8 {[%clk 0:01:53.5]} 21.
Re6 {[%clk 0:01:43.6]} 21... Nf8 {[%clk 0:01:48.6]} 22. Re2 {[%clk 0:01:43.2]}
22... Kd7 {[%clk 0:01:39.5]} 23. Rhe1 {[%clk 0:01:40.7]} 23... Re8 {[%clk
0:01:37.1]} 24. Ne6 {[%clk 0:01:32.4]} 24... Nxe6 {[%clk 0:01:28.4]} 25. Rxe6
{[%clk 0:01:33.3]} 25... Nc7 {[%clk 0:00:56.9]} 26. Rxg6 {[%clk 0:01:32.7]}
26... Rxg6 {[%clk 0:00:56.4]} 27. Bxg6 {[%clk 0:01:33.6]} 27... Rg8 {[%clk
0:00:55.7]} 28. Bxh5 {[%clk 0:01:28.4]} 28... Rxg2 {[%clk 0:00:55.6]} 29. Bg4+
{[%clk 0:01:28.1]} 29... Kd8 {[%clk 0:00:46.5]} 30. Bg5 {[%clk 0:01:27.1]} 30...
Nd5 {[%clk 0:00:41.5]} 31. h5 {[%clk 0:01:27.3]} 31... Bc8 {[%clk 0:00:36.8]}
32. h6 {[%clk 0:01:20.4]} 32... Bxg4 {[%clk 0:00:32]} 33. fxg4 {[%clk
0:01:20.3]} 33... Rh2 {[%clk 0:00:30]} 34. Bc1 {[%clk 0:01:11.7]} 34... Nb4
{[%clk 0:00:20.3]} 35. g5 {[%clk 0:01:04.2]} 35... Nxc2 {[%clk 0:00:19.7]} 36.
Rg1 {[%clk 0:01:00.8]} 36... Nxd4 {[%clk 0:00:18]} 37. g6 {[%clk 0:01:00.7]}
37... a3 {[%clk 0:00:15.4]} 38. g7 {[%clk 0:00:57.8]} 38... axb2 {[%clk
0:00:13.1]} 39. g8=Q+ {[%clk 0:00:57.7]} 39... Kc7 {[%clk 0:00:14]} 40. Bxb2
{[%clk 0:00:54]} 40... Ne2 {[%clk 0:00:11.6]} 41. Re1 {[%clk 0:00:50.7]} 1-0

[Event "Late-Titled-Tuesday-Blitz-September-12-2023"]
[Site "Chess.com"]
[Date "2023.09.12"]
[Round "1"]
[White "ljuks68"]
[Black "Skagoogle"]
[Result "1-0"]
[WhiteElo "2448"]
[BlackElo "2778"]
[TimeControl "180+1"]
[EndTime "14:07:05 PDT"]
[Termination "ljuks68 won by resignation"]

1. e4 {[%clk 0:02:59.4]} 1... c5 {[%clk 0:02:59.3]} 2. Nf3 {[%clk 0:02:58.8]}
2... d6 {[%clk 0:02:59]} 3. d4 {[%clk 0:02:59.4]} 3... cxd4 {[%clk 0:02:59.9]}
4. Nxd4 {[%clk 0:02:59.9]} 4... Nf6 {[%clk 0:03:00.5]} 5. Nc3 {[%clk 0:03:00.3]}
5... a6 {[%clk 0:03:00.9]} 6. Bg5 {[%clk 0:03:00.6]} 6... e6 {[%clk 0:02:56.7]}
7. f4 {[%clk 0:03:00.6]} 7... Be7 {[%clk 0:02:57.4]} 8. Qf3 {[%clk 0:03:00.3]}
8... Qc7 {[%clk 0:02:58.2]} 9. O-O-O {[%clk 0:03:00.3]} 9... Nbd7 {[%clk
0:02:56.2]} 10. g4 {[%clk 0:03:00.3]} 10... b5 {[%clk 0:02:55.8]} 11. Bxf6
{[%clk 0:03:00.7]} 11... Nxf6 {[%clk 0:02:56.5]} 12. g5 {[%clk 0:03:00.9]} 12...
Nd7 {[%clk 0:02:56.6]} 13. f5 {[%clk 0:03:01.4]} 13... Nc5 {[%clk 0:02:09.8]}
14. f6 {[%clk 0:03:00]} 14... gxf6 {[%clk 0:02:10.1]} 15. gxf6 {[%clk
0:03:00.2]} 15... Bf8 {[%clk 0:02:10.8]} 16. Rg1 {[%clk 0:03:00.2]} 16... Bb7
{[%clk 0:02:02.9]} 17. Bh3 {[%clk 0:02:44.7]} 17... O-O-O {[%clk 0:01:56.2]} 18.
Kb1 {[%clk 0:02:15.8]} 18... Kb8 {[%clk 0:01:53.6]} 19. a3 {[%clk 0:02:05.4]}
19... h5 {[%clk 0:01:52.2]} 20. Rde1 {[%clk 0:01:54.4]} 20... Bh6 {[%clk
0:01:49.4]} 21. Rd1 {[%clk 0:01:37.9]} 21... h4 {[%clk 0:01:41.4]} 22. Bg2
{[%clk 0:01:33.9]} 22... Qb6 {[%clk 0:01:32.8]} 23. Bh1 {[%clk 0:01:25.1]} 23...
b4 {[%clk 0:01:31.4]} 24. axb4 {[%clk 0:01:24.6]} 24... Qxb4 {[%clk 0:01:32.3]}
25. Qe2 {[%clk 0:01:07.7]} 25... Rc8 {[%clk 0:01:28.4]} 26. Rg4 {[%clk
0:00:53.8]} 26... Qb6 {[%clk 0:01:01.5]} 27. Rxh4 {[%clk 0:00:47.5]} 27... Bg5
{[%clk 0:00:54.7]} 28. Rxh8 {[%clk 0:00:45.9]} 28... Rxh8 {[%clk 0:00:55.6]} 29.
e5 {[%clk 0:00:43.3]} 29... d5 {[%clk 0:00:30.8]} 30. Rg1 {[%clk 0:00:38.4]}
30... Bf4 {[%clk 0:00:20.2]} 31. Nf3 {[%clk 0:00:38.4]} 31... Nd7 {[%clk
0:00:20.1]} 32. Rg7 {[%clk 0:00:36.4]} 32... Nxe5 {[%clk 0:00:11.9]} 33. Nxe5
{[%clk 0:00:35.1]} 33... Qd4 {[%clk 0:00:06.9]} 34. Ng4 {[%clk 0:00:28.7]} 34...
a5 {[%clk 0:00:04]} 35. Rxf7 {[%clk 0:00:28.2]} 35... e5 {[%clk 0:00:04.3]} 36.
Qb5 {[%clk 0:00:27.6]} 36... Qg1+ {[%clk 0:00:01.9]} 37. Ka2 {[%clk 0:00:27.2]}
37... Qa7 {[%clk 0:00:02.7]} 38. Bxd5 {[%clk 0:00:26.4]} 1-0